fUSD/lending_fUSD_20251206
["ID","MTS","AMOUNT","RATE_DAILY","PERIOD"]
[396574123,1765055470274,-2413.02,0.00016986,2]
[396574124,1765055470286,-500.0,0.00016986,2]
[396574125,1765055470298,-642.73,0.00016986,2]
[396574126,1765055470311,-500.0,0.00016986,2]
[396574127,1765055470324,-500.0,0.00016986,2]
[396574128,1765055470337,-500.0,0.00016986,2]
[396574129,1765055470351,-500.0,0.00016986,2]
[396574130,1765055470363,-539.32728333,0.00016986,2]
[396574131,1765055470375,-553.26748407,0.00016986,2]
[396574132,1765055470387,-500.0,0.00016986,2]
[396574133,1765055470399,-657.2,0.00016986,2]
[396574134,1765055470412,-171.141905,0.00016986,2]
[396574135,1765055470426,-500.0,0.00016986,2]
[396574136,1765055470438,-2447.39,0.00016986,2]
[396574137,1765055470450,-1974.53,0.00016986,2]
[396574138,1765055470464,-1683.34,0.00016986,2]
[396574139,1765055470475,-500.0,0.00016986,2]
[396574140,1765055470487,-500.0,0.00016986,2]
[396574141,1765055470499,-693.71,0.00016986,2]
[396574142,1765055470510,-500.0,0.00016986,2]
[396574143,1765055470522,-500.0,0.00016986,2]
[396574144,1765055470534,-1764.29,0.00016986,2]
[396574145,1765055470545,-500.0,0.00016986,2]
[396574146,1765055470556,-1191.13,0.00016986,2]
[396574147,1765055470568,-505.13177428,0.00016986,2]
[396574148,1765055470580,-609.82,0.00016986,2]
[396574149,1765055470592,-621.74,0.00016986,2]
[396574150,1765055470603,-500.0,0.00016986,2]
[396574151,1765055470615,-1802.11,0.00016986,2]
[396574152,1765055470626,-2317.73,0.00016986,2]
[396574153,1765055470638,-2002.2,0.00016986,2]
[396574154,1765055470651,-641.76,0.00016986,2]
[396574155,1765055470662,-8075.02,0.00016986,2]
[396574156,1765055470674,-500.0,0.00016986,2]
[396574157,1765055470686,-500.0,0.00016986,2]
[396574158,1765055470697,-500.0,0.00016986,2]
[396574159,1765055470709,-500.0,0.00016986,2]
[396574160,1765055470721,-500.0,0.00016986,2]
[396574161,1765055470732,-500.0,0.00016986,2]
[396574162,1765055470744,-1279.02,0.00016986,2]
[396574163,1765055470756,-757.03,0.00016986,2]
[396574164,1765055470767,-500.0,0.00016986,2]
[396574165,1765055470779,-500.0,0.00016986,2]
[396574166,1765055470791,-500.0,0.00016986,2]
[396574167,1765055470802,-1479.48,0.00016986,2]
[396574168,1765055470814,-500.0,0.00016986,2]
[396574169,1765055470827,-1350.61,0.00016986,2]
[396574170,1765055470838,-500.0,0.00016986,2]
[396574171,1765055470850,-601.81,0.00016986,2]
[396574172,1765055470862,-500.0,0.00016986,2]
[396574173,1765055470874,-500.0,0.00016986,2]
[396574174,1765055470885,-935.95,0.00016986,2]
[396574175,1765055470898,-500.0,0.00016986,2]
[396574176,1765055470910,-500.0,0.00016986,2]
[396574177,1765055470922,-2529.89,0.00016986,2]
[396574178,1765055470935,-500.0,0.00016986,2]
[396574179,1765055470947,-500.0,0.00016986,2]
[396574180,1765055470958,-500.0,0.00016986,2]
[396574181,1765055470969,-2179.79,0.00016986,2]
[396574182,1765055470981,-500.0,0.00016986,2]
[396574183,1765055470993,-500.0,0.00016986,2]
[396574184,1765055471004,-1292.94,0.00016986,2]
[396574185,1765055471015,-500.0,0.00016986,2]
[396574186,1765055471026,-2305.36,0.00016986,2]
[396574187,1765055471037,-4910.8,0.00016986,2]
[396574188,1765055471048,-2236.15,0.00016986,2]
[396574189,1765055471060,-533.97,0.00016986,2]
[396574190,1765055471072,-4047.46,0.00016986,2]
[396574191,1765055471084,-500.0,0.00016986,2]
[396574192,1765055471096,-564.54363423,0.00016986,2]
[396574193,1765055471108,-500.0,0.00016986,2]
[396574194,1765055471119,-500.0,0.00016986,2]
[396574195,1765055471131,-500.0,0.00016986,2]
[396574196,1765055471142,-500.0,0.00016986,2]
[396574197,1765055471154,-500.0,0.00016986,2]
[396574198,1765055471166,-221.31105486,0.00016986,2]
[396574199,1765055471178,-2582.14,0.00016986,2]
[396574200,1765055471189,-500.0,0.00016986,2]
[396574201,1765055471200,-609.03,0.00016986,2]
[396574202,1765055471212,-946.19,0.00016986,2]
[396574203,1765055471225,-500.0,0.00016986,2]
[396574204,1765055471236,-500.0,0.00016986,2]
[396574205,1765055471248,-500.0,0.00016986,2]
[396574206,1765055471260,-500.0,0.00016986,2]
[396574207,1765055471274,-2202.85,0.00016986,2]
[396574208,1765055471285,-2000.72,0.00016986,2]
[396574209,1765055471296,-500.0,0.00016986,2]
[396574210,1765055471308,-500.0,0.00016986,2]
[396574211,1765055471319,-2440.06,0.00016986,2]
[396574212,1765055471330,-500.0,0.00016986,2]
[396574213,1765055471343,-500.0,0.00016986,2]
[396574214,1765055471357,-553.25681469,0.00016986,2]
[396574215,1765055471369,-2511.91,0.00016986,2]
[396574216,1765055471381,-715.78,0.00016986,2]
[396574217,1765055471392,-500.0,0.00016986,2]
[396574218,1765055471405,-500.0,0.00016986,2]
[396574219,1765055471417,-500.0,0.00016986,2]
[396574220,1765055471429,-500.0,0.00016986,2]
[396574221,1765055471441,-2915.8,0.00016986,2]
[396574222,1765055471452,-1679.36,0.00016986,2]
[396574223,1765055471464,-500.0,0.00016986,2]
[396574224,1765055471475,-2947.35,0.00016986,2]
[396574225,1765055471486,-551.1,0.00016986,2]
[396574226,1765055471498,-2328.87,0.00016986,2]
[396574227,1765055471509,-500.0,0.00016986,2]
[396574228,1765055471520,-2268.19,0.00016986,2]
[396574229,1765055471531,-500.0,0.00016986,2]
[396574230,1765055471543,-2286.76,0.00016986,2]
[396574231,1765055471555,-500.0,0.00016986,2]
[396574232,1765055471565,-2434.11,0.00016986,2]
[396574233,1765055471577,-500.0,0.00016986,2]
[396574234,1765055471589,-500.0,0.00016986,2]
[396574235,1765055471600,-1000.0,0.00016986,2]
[396574236,1765055471611,-614.85,0.00016986,2]
[396574237,1765055471623,-500.0,0.00016986,2]
[396574238,1765055471636,-579.93,0.00016986,2]
[396574239,1765055471647,-500.0,0.00016986,2]
[396574240,1765055471659,-2402.28,0.00016986,2]
[396574241,1765055471671,-500.0,0.00016986,2]
[396574242,1765055471683,-3398.49,0.00016986,2]
[396574243,1765055471694,-500.0,0.00016986,2]
[396574244,1765055471705,-500.0,0.00016986,2]
[396574245,1765055471716,-500.0,0.00016986,2]
[396574246,1765055471727,-531.14,0.00016986,2]
[396574247,1765055471739,-500.0,0.00016986,2]
[396574248,1765055471751,-500.0,0.00016986,2]
[396574249,1765055471762,-500.0,0.00016986,2]
[396574250,1765055471773,-500.0,0.00016986,2]
[396574251,1765055471785,-500.0,0.00016986,2]
[396574252,1765055471796,-500.0,0.00016986,2]
[396574253,1765055471807,-542.24,0.00016986,2]
[396574254,1765055471818,-500.0,0.00016986,2]
[396574255,1765055471831,-500.0,0.00016986,2]
[396574256,1765055471843,-500.0,0.00016986,2]
[396574257,1765055471855,-1679.3,0.00016986,2]
[396574258,1765055471867,-500.0,0.00016986,2]
[396574259,1765055471880,-500.0,0.00016986,2]
[396574260,1765055471889,-942.52,0.00016986,2]
[396574261,1765055471898,-528.65,0.00016986,2]
[396574262,1765055471907,-2441.45,0.00016986,2]
[396574263,1765055471916,-2349.46,0.00016986,2]
[396574264,1765055471925,-500.0,0.00016986,2]
[396574265,1765055471935,-500.0,0.00016986,2]
[396574266,1765055471945,-500.0,0.00016986,2]
[396574267,1765055471954,-7010.41,0.00016986,2]
[396574268,1765055471963,-559.35,0.00016986,2]
[396574269,1765055471972,-2650.5,0.00016986,2]
[396574270,1765055471982,-760.56,0.00016986,2]
[396574271,1765055471992,-500.0,0.00016986,2]
[396574272,1765055472002,-500.0,0.00016986,2]
[396574273,1765055472011,-500.0,0.00016986,2]
[396574274,1765055472447,-1180.6,0.00016986,2]
[396574275,1765055472467,-500.0,0.00016986,2]
[396574276,1765055472502,-850.55,0.00016986,2]
[396574277,1765055472519,-2095.55,0.00016986,2]
[396574278,1765055472529,-503.57099789,0.00016986,2]
[396574279,1765055472538,-1950.47,0.00016986,2]
[396574280,1765055472547,-500.0,0.00016986,2]
[396574281,1765055472556,-500.0,0.00016986,2]
[396574282,1765055472566,-548.23,0.00016986,2]
[396574283,1765055472575,-500.0,0.00016986,2]
[396574284,1765055472584,-2464.2,0.00016986,2]
[396574285,1765055472599,-500.0,0.00016986,2]
[396574286,1765055472611,-500.0,0.00016986,2]
[396574287,1765055472621,-2840.69,0.00016986,2]
[396574288,1765055472630,-500.0,0.00016986,2]
[396574289,1765055472642,-2145.43,0.00016986,2]
[396574290,1765055472653,-2208.15,0.00016986,2]
[396574291,1765055472663,-515.11,0.00016986,2]
[396574292,1765055472672,-500.0,0.00016986,2]
[396574293,1765055472682,-500.0,0.00016986,2]
[396574294,1765055472691,-2032.75,0.00016986,2]
[396574295,1765055472700,-684.81,0.00016986,2]
[396574296,1765055472709,-500.0,0.00016986,2]
[396574297,1765055472718,-2522.62,0.00016986,2]
[396574298,1765055472728,-649.24,0.00016986,2]
[396574299,1765055472737,-500.0,0.00016986,2]
[396574300,1765055472746,-500.0,0.00016986,2]
[396574301,1765055472756,-500.0,0.00016986,2]
[396574302,1765055472766,-2568.12,0.00016986,2]
[396574303,1765055472775,-500.0,0.00016986,2]
[396574304,1765055472785,-2348.33,0.00016986,2]
[396574305,1765055472795,-561.89,0.00016986,2]
[396574306,1765055472805,-500.0,0.00016986,2]
[396574307,1765055472815,-2751.94,0.00016986,2]
[396574308,1765055472824,-2273.25,0.00016986,2]
[396574309,1765055472834,-9093.25,0.00016986,2]
[396574310,1765055472844,-500.0,0.00016986,2]
[396574311,1765055472853,-500.0,0.00016986,2]
[396574312,1765055472863,-500.0,0.00016986,2]
[396574313,1765055472872,-2184.86,0.00016986,2]
[396574314,1765055472881,-2395.7,0.00016986,2]
[396574315,1765055472891,-1168.06,0.00016986,2]
[396574316,1765055472900,-500.0,0.00016986,2]
[396574317,1765055472909,-2449.53,0.00016986,2]
[396574318,1765055472919,-1216.34,0.00016986,2]
[396574319,1765055472928,-500.0,0.00016986,2]
[396574320,1765055472939,-500.0,0.00016986,2]
[396574321,1765055472948,-500.0,0.00016986,2]
[396574322,1765055472958,-8683.38,0.00016986,2]
[396574323,1765055472967,-500.0,0.00016986,2]
[396574324,1765055472977,-2205.79,0.00016986,2]
[396574325,1765055472986,-500.0,0.00016986,2]
[396574326,1765055472995,-777.45,0.00016986,2]
[396574327,1765055473005,-500.0,0.00016986,2]
[396574328,1765055473014,-500.0,0.00016986,2]
[396574329,1765055473023,-500.0,0.00016986,2]
[396574330,1765055473032,-2624.29,0.00016986,2]
[396574331,1765055473041,-2034.19,0.00016986,2]
[396574332,1765055473050,-500.0,0.00016986,2]
[396574333,1765055473059,-500.0,0.00016986,2]
[396574334,1765055473068,-615.24,0.00016986,2]
[396574335,1765055473077,-500.0,0.00016986,2]
[396574336,1765055473087,-755.14,0.00016986,2]
[396574337,1765055473096,-500.0,0.00016986,2]
[396574338,1765055473105,-2363.81,0.00016986,2]
[396574339,1765055473115,-500.0,0.00016986,2]
[396574340,1765055473125,-500.0,0.00016986,2]
[396574341,1765055473136,-2615.62,0.00016986,2]
[396574342,1765055473146,-513.97,0.00016986,2]
[396574343,1765055473155,-2652.62,0.00016986,2]
[396574344,1765055473165,-533.03261765,0.00016986,2]
[396574345,1765055473174,-500.0,0.00016986,2]
[396574346,1765055473185,-500.0,0.00016986,2]
[396574347,1765055473195,-500.0,0.00016986,2]
[396574348,1765055473204,-605.62,0.00016986,2]
[396574349,1765055473213,-552.98,0.00016986,2]
[396574350,1765055473223,-2793.47,0.00016986,2]
[396574351,1765055473232,-500.0,0.00016986,2]
[396574352,1765055473242,-598.99,0.00016986,2]
[396574353,1765055473251,-2559.83,0.00016986,2]
[396574354,1765055473261,-1379.15,0.00016986,2]
[396574355,1765055473272,-596.3,0.00016986,2]
[396574356,1765055473284,-650.48,0.00016986,2]
[396574357,1765055473293,-500.0,0.00016986,2]
[396574358,1765055473302,-500.0,0.00016986,2]
[396574359,1765055473311,-500.0,0.00016986,2]
[396574360,1765055473322,-1040.27,0.00016986,2]
[396574361,1765055473332,-686.73,0.00016986,2]
[396574362,1765055473341,-500.0,0.00016986,2]
[396574363,1765055473351,-2433.95,0.00016986,2]
[396574364,1765055473361,-524.2,0.00016986,2]
[396574365,1765055473370,-500.0,0.00016986,2]
[396574366,1765055473380,-2068.32,0.00016986,2]
[396574367,1765055473390,-488.69612702,0.00016986,2]
[396574368,1765055473399,-500.0,0.00016986,2]
[396574369,1765055473409,-500.0,0.00016986,2]
[396574370,1765055473419,-1048.67,0.00016986,2]
[396574371,1765055473428,-1798.57,0.00016986,2]
[396574372,1765055473438,-529.76,0.00016986,2]
[396574373,1765055473447,-500.0,0.00016986,2]
[396574374,1765055473456,-500.0,0.00016986,2]
[396574375,1765055473466,-500.0,0.00016986,2]
[396574376,1765055473475,-500.0,0.00016986,2]
[396574377,1765055473483,-2451.79,0.00016986,2]
[396574378,1765055473493,-500.0,0.00016986,2]
[396574379,1765055473502,-500.0,0.00016986,2]
[396574380,1765055473511,-2114.8,0.00016986,2]
[396574381,1765055473520,-500.0,0.00016986,2]
[396574382,1765055473530,-3712.82,0.00016986,2]
[396574383,1765055473539,-3596.77,0.00016986,2]
[396574384,1765055473549,-500.0,0.00016986,2]
[396574385,1765055473559,-772.24,0.00016986,2]
[396574386,1765055473568,-500.0,0.00016986,2]
[396574387,1765055473577,-763.18,0.00016986,2]
[396574388,1765055473586,-2323.94,0.00016986,2]
[396574389,1765055473595,-696.11,0.00016986,2]
[396574390,1765055473604,-611.27,0.00016986,2]
[396574391,1765055473614,-500.0,0.00016986,2]
[396574392,1765055473623,-500.0,0.00016986,2]
[396574393,1765055473633,-500.0,0.00016986,2]
[396574394,1765055473642,-500.0,0.00016986,2]
[396574395,1765055473651,-500.0,0.00016986,2]
[396574396,1765055473661,-500.0,0.00016986,2]
[396574397,1765055473672,-2701.02,0.00016986,2]
[396574398,1765055473680,-779.37,0.00016986,2]
[396574399,1765055473690,-500.0,0.00016986,2]
[396574400,1765055473699,-500.0,0.00016986,2]
[396574401,1765055473708,-541.19368772,0.00016986,2]
[396574402,1765055473717,-500.0,0.00016986,2]
[396574403,1765055473726,-1671.52,0.00016986,2]
[396574404,1765055473735,-1891.67,0.00016986,2]
[396574405,1765055473744,-528.16,0.00016986,2]
[396574406,1765055473753,-151.0,0.00016986,2]
[396574407,1765055473762,-500.0,0.00016986,2]
[396574408,1765055473770,-500.0,0.00016986,2]
[396574409,1765055473779,-151.0,0.00016986,2]
[396574410,1765055473788,-691.3,0.00016986,2]
[396574411,1765055473797,-151.0,0.00016986,2]
[396574412,1765055473806,-500.0,0.00016986,2]
[396574413,1765055473815,-858.99,0.00016986,2]
[396574414,1765055473823,-500.0,0.00016986,2]
[396574415,1765055473832,-500.0,0.00016986,2]
[396574416,1765055473841,-1046.23,0.00016986,2]
[396574417,1765055473850,-500.0,0.00016986,2]
[396574418,1765055473859,-500.0,0.00016986,2]
[396574419,1765055473868,-500.0,0.00016986,2]
[396574420,1765055473877,-820.12,0.00016986,2]
[396574421,1765055473886,-500.0,0.00016986,2]
[396574422,1765055473895,-2179.04,0.00016986,2]
[396574423,1765055473904,-500.0,0.00016986,2]
[396574424,1765055473913,-500.0,0.00016986,2]
[396574425,1765055473923,-537.6845,0.00016986,2]
[396574426,1765055473933,-366.76390193,0.0001699,2]
[396574427,1765055473942,-366.76390193,0.0001699,2]
[396574428,1765055473950,-777.77,0.00016999,2]
[396574429,1765055473959,-777.77,0.00016999,2]
[396574430,1765055473967,-777.77,0.00016999,2]
[396574431,1765055473977,-777.77,0.00016999,2]
[396574432,1765055473986,-777.77,0.00016999,2]
[396574433,1765055473995,-777.77,0.00016999,2]
[396574434,1765055474004,-777.77,0.00016999,2]
[396574435,1765055474013,-777.77,0.00016999,2]
[396574436,1765055474023,-777.89,0.00016999,2]
[396574437,1765055474033,-1081624.99559404,0.00017,2]
[396574438,1765055474670,-4307.95744397,0.00017,2]
[396574439,1765055474683,-1109.5857,0.00017,2]
[396574440,1765055475178,-25.05819337,0.00016438,2]
[396574441,1765055475434,-540.36363649,0.00016438,2]
[396574442,1765055475443,-136.7851367,0.00016438,2]
[396574443,1765055475951,-17.0327563,0.00016438,2]
[396574444,1765055475960,-163.129153,0.00016438,2]
[396574445,1765055475969,-153.817893,0.00016438,2]
[396574446,1765055475979,-500.0,0.00016438,2]
[396574447,1765055475988,-163.129153,0.00016438,2]
[396574448,1765055475998,-500.0,0.00016438,2]
[396574449,1765055476007,-153.817893,0.00016438,2]
[396574450,1765055476016,-163.129153,0.00016438,2]
[396574451,1765055476026,-253.0,0.00016472,2]
[396574452,1765055476035,-118.64047655,0.00016712,2]
[396574453,1765055476048,-35.17741645,0.00016712,2]
[396574454,1765055476057,-153.817893,0.00016712,2]
[396574455,1765055476066,-163.129153,0.00016712,2]
[396574456,1765055476075,-163.129153,0.00016712,2]
[396574457,1765055476084,-153.817893,0.00016712,2]
[396574458,1765055476094,-500.0,0.00016712,2]
[396574459,1765055476103,-153.817893,0.00016712,2]
[396574460,1765055476112,-163.129153,0.00016712,2]
[396574461,1765055476122,-163.129153,0.00016712,2]
[396574462,1765055476131,-171.02484807,0.00016712,2]
[396574463,1765055476140,-153.817893,0.00016712,2]
[396574464,1765055476150,-81.01878644,0.00016712,2]
[396574465,1765055476167,-72.79910656,0.00016712,2]
[396574466,1765055476176,-153.817893,0.00016753,2]
[396574467,1765055476185,-163.129153,0.00016753,2]
[396574468,1765055476195,-153.817893,0.00016753,2]
[396574469,1765055476204,-163.129153,0.00016753,2]
[396574470,1765055476213,-153.817893,0.00016753,2]
[396574471,1765055476224,-153.817893,0.00016986,2]
[396574472,1765055476234,-163.129153,0.00016986,2]
[396574473,1765055476243,-500.0,0.00016986,2]
[396574474,1765055476253,-153.817893,0.00016986,2]
[396574475,1765055476262,-163.129153,0.00016986,2]
[396574476,1765055476274,-112801.38635705,0.00017,2]
[396574585,1765056378213,23301.60087234,0.000209,30]
[396574605,1765056631792,-1097.0,0.00013189,2]
[396574606,1765056631802,-1000.0,0.00013699,2]
[396574607,1765056631811,-1097.0,0.00013884,2]
[396574608,1765056631821,-166.66,0.0001418,2]
[396574609,1765056631830,-200.0,0.00014372,2]
[396574610,1765056631840,-166.66,0.00014478,2]
[396574611,1765056631850,-1097.0,0.00014614,2]
[396574612,1765056631859,-1000.0,0.00014627,2]
[396574613,1765056631868,-166.66,0.00014777,2]
[396574614,1765056631878,-278.0,0.00014928,2]
[396574615,1765056631887,-178.31,0.00014959,2]
[396574616,1765056631896,-225.0,0.00014961,2]
[396574617,1765056631905,-500.0,0.00014974,2]
[396574618,1765056631915,-500.0,0.00014974,2]
[396574619,1765056631924,-359.93500459,0.00014974,2]
[396574620,1765056631933,-11085.09002901,0.00014975,2]
[396574621,1765056631942,-10504.15905899,0.00014975,2]
[396574622,1765056631951,-300.0,0.00014998,2]
[396574624,1765056631960,-1200.0,0.00014998,2]
[396574626,1765056631969,-300.0,0.00014998,2]
[396574627,1765056631978,-300.0,0.00014998,2]
[396574629,1765056631987,-285.03895358,0.00014999,2]
[396574630,1765056631996,-500.0,0.00014999,2]
[396574631,1765056632005,-306.17676633,0.00014999,2]
[396574632,1765056632014,-500.0,0.00014999,2]
[396574633,1765056632023,-484.98299596,0.00014999,2]
[396574634,1765056632031,-55190.69664239,0.00015,2]
[396574635,1765056632043,-22414.83832372,0.00015,2]
[396574636,1765056632054,-820.7253007,0.00015,2]
[396574637,1765056632081,-913.83413,0.00015,2]
[396574639,1765056632093,-407.82349986,0.00015,2]
[396574642,1765056632115,-4644.36486807,0.00015,2]
[396574644,1765056632126,-1540.79791692,0.00015,2]
[396574645,1765056632156,-4164.0393239,0.00015,2]
[396574646,1765056632166,-328.4750411,0.00015,2]
[396574647,1765056632177,-81774.35435602,0.00015,2]
[396574648,1765056632188,-1573.16448815,0.00015,2]
[396574649,1765056632226,-1626.5616646,0.00015,2]
[396574650,1765056637702,-943.0,0.00014916,2]
[396574651,1765056637712,-669.91995153,0.00014975,2]
[396574652,1765056637722,-166330.70864457,0.00015,2]
[396574653,1765056637732,-166.66,0.00015075,2]
[396574654,1765056637743,-200.0,0.00015084,2]
[396574655,1765056637754,-151.0,0.00015186,2]
[396574656,1765056637763,-11085.09002893,0.00015189,2]
[396574657,1765056637773,-10504.15905899,0.00015189,2]
[396574658,1765056637783,-150.0,0.00015263,2]
[396574659,1765056637793,-150.0,0.00015263,2]
[396574660,1765056637802,-150.0,0.00015263,2]
[396574661,1765056637812,-150.0,0.00015263,2]
[396574662,1765056637823,-150.0,0.00015263,2]
[396574663,1765056637833,-166.66,0.00015374,2]
[396574664,1765056637843,-1097.0,0.00015384,2]
[396574665,1765056637853,-11085.09002893,0.00015403,2]
[396574666,1765056637863,-10504.15905899,0.00015403,2]
[396574667,1765056637872,-11085.09002893,0.00015617,2]
[396574668,1765056637882,-10504.15905899,0.00015617,2]
[396574669,1765056637892,-9557.9894594,0.00015642,2]
[396574670,1765056637902,-166.66,0.00015672,2]
[396574671,1765056637911,-151.0,0.00015696,2]
[396574672,1765056637920,-151.0,0.00015696,2]
[396574673,1765056637930,-760000.0,0.00015699,2]
[396574674,1765056637939,-1000.0,0.000157,2]
[396574675,1765056637948,-177.945,0.000157,2]
[396574676,1765056637957,-1915.022,0.000157,2]
[396574677,1765056637966,-1000.0,0.000157,2]
[396574678,1765056637975,-4090.5884,0.000157,2]
[396574679,1765056637985,-5204.1197,0.000157,2]
[396574681,1765056637994,-2500.0,0.000157,2]
[396574683,1765056638003,-539.27684315,0.0001578,2]
[396574684,1765056638013,-649.21,0.0001579,3]
[396574686,1765056638022,-200.0,0.00015791,2]
[396574688,1765056638031,-500.0,0.00015791,2]
[396574690,1765056638041,-500.0,0.00015791,2]
[396574692,1765056638050,-500.0,0.00015791,2]
[396574694,1765056638059,-500.0,0.00015791,2]
[396574696,1765056638069,-500.0,0.00015791,2]
[396574698,1765056638078,-500.0,0.00015791,2]
[396574700,1765056638087,-2450.0,0.00015791,2]
[396574702,1765056638098,-500.0,0.00015791,2]
[396574704,1765056638108,-500.0,0.00015791,2]
[396574706,1765056638118,-500.0,0.00015791,2]
[396574708,1765056638128,-171.56982309,0.00015791,2]
[396574710,1765056638138,-500.0,0.00015791,2]
[396574712,1765056638147,-500.0,0.00015791,2]
[396574714,1765056638156,-500.0,0.00015791,2]
[396574716,1765056638165,-500.0,0.00015791,2]
[396574718,1765056638174,-467.37136402,0.00015791,2]
[396574720,1765056638183,-200.0,0.00015791,2]
[396574722,1765056638192,-500.0,0.00015791,2]
[396574724,1765056638202,-270.86578806,0.00015791,2]
[396574726,1765056638211,-1028.16724031,0.00015799,5]
[396574728,1765056638221,-500.0,0.00015799,2]
[396574730,1765056638230,-500.0,0.00015799,2]
[396574732,1765056638240,-500.0,0.00015799,2]
[396574734,1765056638249,-500.0,0.00015799,2]
[396574736,1765056638258,-500.0,0.00015799,2]
[396574738,1765056638267,-500.0,0.00015799,2]
[396574740,1765056638276,-500.0,0.00015799,2]
[396574742,1765056638286,-500.0,0.00015799,2]
[396574744,1765056638295,-500.0,0.00015799,2]
[396574746,1765056638305,-500.0,0.00015799,2]
[396574748,1765056638314,-402.34038572,0.00015799,2]
[396574750,1765056638324,-500.0,0.00015799,2]
[396574752,1765056638333,-242.79480687,0.00015799,2]
[396574753,1765056638343,-500.0,0.00015799,2]
[396574755,1765056638353,-500.0,0.00015799,2]
[396574757,1765056638362,-609.97156983,0.00015799,2]
[396574759,1765056638372,-500.0,0.00015799,2]
[396574760,1765056638381,-500.0,0.00015799,2]
[396574761,1765056638391,-500.0,0.00015799,2]
[396574762,1765056638400,-500.0,0.00015799,2]
[396574763,1765056638410,-500.0,0.00015799,2]
[396574764,1765056638419,-500.0,0.00015799,2]
[396574765,1765056638428,-500.0,0.00015799,2]
[396574766,1765056638437,-500.0,0.00015799,2]
[396574767,1765056638447,-514.05399617,0.00015799,2]
[396574768,1765056638456,-500.0,0.00015799,2]
[396574769,1765056638465,-588.24188777,0.00015799,2]
[396574770,1765056638475,-500.0,0.00015799,2]
[396574771,1765056638484,-500.0,0.00015799,2]
[396574772,1765056638493,-500.0,0.00015799,2]
[396574773,1765056638502,-500.0,0.00015799,2]
[396574774,1765056638512,-223.9422061,0.00015799,2]
[396574775,1765056638521,-222.56764232,0.000158,2]
[396574776,1765056638530,-2224.71245752,0.00015807,2]
[396574777,1765056638539,-11085.09002893,0.00015831,2]
[396574778,1765056638548,-10504.15905899,0.00015831,2]
[396574779,1765056638558,-3014.3782,0.000159,2]
[396574780,1765056638568,-33422.8467,0.000159,2]
[396574781,1765056638577,-946.94877059,0.00015956,2]
[396574782,1765056638586,-334.5472959,0.00015962,2]
[396574783,1765056638596,-151.0,0.00015962,2]
[396574784,1765056638605,-151.0,0.00015962,2]
[396574785,1765056638614,-574.12855637,0.00015962,2]
[396574786,1765056638623,-500.0,0.00015962,2]
[396574787,1765056638632,-500.0,0.00015962,2]
[396574788,1765056638641,-500.0,0.00015962,2]
[396574789,1765056638650,-151.0,0.00015962,2]
[396574790,1765056638659,-500.0,0.00015962,2]
[396574791,1765056638668,-500.0,0.00015962,2]
[396574792,1765056638678,-500.0,0.00015962,2]
[396574793,1765056638686,-500.0,0.00015962,2]
[396574794,1765056638696,-500.0,0.00015962,2]
[396574795,1765056638706,-500.0,0.00015962,2]